bitfinex/quotes_SOLUSD_20241113
["timestamp","ask_amount","ask_price","bid_price","bid_amount"]
[1731513759221,20.0,216.98,216.89,22.39174044]
[1731513759406,47.00054044,216.98,216.89,22.39174044]
[1731513759607,22.39174044,216.96,216.87,22.39174044]
[1731513759922,32.2784,217.0,216.93,22.39174044]
[1731513760618,32.2784,217.0,216.81,22.39174044]
[1731513760619,22.39174044,216.96,216.87,22.39174044]
[1731513760919,22.39174044,216.92,216.83,22.39174044]
[1731513761618,22.39174044,216.92,216.7,52.96924044]
[1731513761619,22.39174044,216.9,216.79,22.39174044]
[1731513761919,22.39174044,216.86,216.77,22.39174044]
[1731513762423,20.0,216.85,216.77,22.39174044]
[1731513762605,20.0,216.85,216.79,22.39174044]
[1731513762800,20.0,216.89,216.83,22.39174044]
[1731513763005,0.09311952,216.86,216.85,22.39174044]
[1731513763216,0.09311952,216.86,216.85,22.51723044]
[1731513763415,0.09311952,216.86,216.85,22.39174044]
[1731513763612,0.09311952,216.86,216.72,4.82226901]
[1731513763801,0.09311952,216.86,216.73,23.776884]
[1731513764000,0.09311952,216.86,216.74,0.12549]
[1731513764412,0.09311952,216.86,216.72,24.002374]
[1731513764625,0.09311952,216.86,216.75,28.72464301]
[1731513766932,0.09311952,216.86,216.75,29.74681295]
[1731513767104,0.09311952,216.86,216.77,23.902374]
[1731513767309,17.924,216.99,216.92,161.00804983]
[1731513767616,17.924,216.99,216.78,4.82226901]
[1731513767617,13.3154,216.99,216.79,23.902374]
[1731513768022,13.3154,216.99,216.8,0.12549]
[1731513768204,22.41107494,216.98,216.8,0.12549]
[1731513768410,13.3154,216.99,216.8,0.12549]
[1731513768617,13.3154,216.99,216.8,12.3054]
[1731513768824,32.2784,217.0,216.81,23.776884]
[1731513769026,32.2784,217.0,216.82,0.12549]
[1731513769205,32.2784,217.0,216.82,4.94775901]
[1731513769405,36.8867,217.0,216.84,0.12549]
[1731513769707,32.2784,217.0,216.84,0.12549]
[1731513770022,32.2784,217.0,216.86,23.902374]
[1731513770447,66.60017494,217.06,216.86,23.902374]
[1731513770731,22.41107494,217.04,216.84,23.776884]
[1731513770911,22.41107494,217.04,216.85,0.12549]
[1731513771604,20.0,217.05,216.85,0.12549]
[1731513771808,22.41107494,217.01,216.85,0.12549]
[1731513772020,30.8388,216.94,216.77,4.5483939]
[1731513772310,30.8388,216.94,216.74,17.3313]
[1731513772511,30.8388,216.94,216.76,4.82226901]
[1731513772710,20.0,216.93,216.74,12.7213]
[1731513772910,22.41107494,216.89,216.74,12.7213]
[1731513773213,22.41107494,216.86,216.69,4.43582719]
[1731513773405,20.0,216.87,216.68,4.61]
[1731513773605,20.0,216.87,216.69,0.12549]
[1731513773819,20.0,216.87,216.69,4.82226901]
[1731513774605,22.41107494,216.88,216.68,4.61]
[1731513774606,20.0,216.83,216.68,4.61]
[1731513775019,22.41107494,216.82,216.68,4.61]
[1731513775227,22.41107494,216.78,216.61,12.6883]
[1731513775432,20.0,216.73,216.54,4.82226901]
[1731513776206,20.0,216.71,216.54,4.82226901]
[1731513776829,22.41107494,216.76,216.54,4.82226901]
[1731513777026,20.0,216.75,216.54,4.82226901]
[1731513777532,20.0,216.75,216.55,0.12549]
[1731513777837,22.41107494,216.74,216.55,4.82226901]
[1731513778132,0.1,216.77,216.53,0.12549]
[1731513778133,20.0,216.71,216.53,0.12549]
[1731513778520,20.0,216.73,216.53,0.12549]
[1731513778713,20.0,216.73,216.53,4.94775901]
[1731513779542,20.0,216.75,216.55,0.12549]
[1731513779850,20.0,216.75,216.56,4.82226901]
[1731513780025,4.6138,216.74,216.56,4.82226901]
[1731513780214,20.0,216.75,216.57,0.12549]
[1731513780536,31.9078,216.8,216.61,23.902374]
[1731513780733,31.9078,216.8,216.63,23.902374]
[1731513781333,32.352,216.87,216.64,5.01726901]
[1731513781523,12.8473,216.92,216.64,5.01726901]
[1731513781524,12.8473,216.92,216.68,23.902374]
[1731513781848,35.25837494,216.92,216.7,23.776884]
[1731513782025,32.352,216.94,216.72,23.776884]
[1731513782229,32.352,216.94,216.73,5.14275901]
[1731513782432,36.9617,216.94,216.74,23.776884]
[1731513782740,22.41107494,216.9,216.74,23.776884]
[1731513782941,22.41107494,216.88,216.74,23.776884]
[1731513783232,22.41107494,216.88,216.67,13.3328]
[1731513783233,0.2,216.91,216.67,13.3328]
[1731513783444,22.41107494,216.79,216.6,13.2512]
[1731513783615,20.0,216.8,216.6,13.2512]
[1731513783822,20.0,216.8,216.61,0.12549]
[1731513784032,20.0,216.82,216.6,17.86619123]
[1731513784337,20.0,216.82,216.61,0.12549]
[1731513784874,20.0,216.86,216.61,23.902374]
[1731513785020,12.0126,216.88,216.63,23.902374]
[1731513785216,12.0126,216.88,216.65,23.902374]
[1731513785441,12.0126,216.88,216.65,29.58329996]
[1731513785643,12.0126,216.88,216.65,34.19829119]
[1731513785937,50.1658,216.94,216.67,36.049174]
[1731513786137,50.1657,216.94,216.69,23.902374]
[1731513786318,50.1657,216.94,216.71,0.12549]
[1731513786637,22.41107494,216.93,216.71,23.902374]
[1731513786834,22.41107494,216.93,216.71,0.12549]
[1731513787038,22.41107494,216.93,216.7,0.12549]
[1731513787532,50.1657,216.94,216.7,0.12549]
[1731513787533,22.41107494,216.91,216.7,0.12549]
[1731513787715,22.41107494,216.89,216.69,28.3471014]
[1731513787914,20.0,216.88,216.7,4.61]
[1731513788122,20.0,216.88,216.69,28.3471014]
[1731513788338,22.41107494,216.87,216.69,23.776884]
[1731513788646,20.0,216.84,216.67,12.1468]
[1731513789544,24.6118,216.84,216.67,12.1468]
[1731513789836,24.6118,216.84,216.68,0.12549]
[1731513790339,22.41107494,216.97,216.89,161.2]
[1731513790534,23.20961929,216.99,216.72,23.902374]
[1731513790732,27.81811929,216.99,216.74,23.902374]
[1731513790945,22.41107494,216.98,216.76,23.776884]
[1731513791138,22.41107494,216.98,216.77,5.14492568]
[1731513791441,22.41107494,216.98,216.79,0.12549]
[1731513791442,4.6089,216.97,216.79,0.12549]
[1731513791640,22.41107494,216.93,216.79,0.12549]
[1731513791824,22.41107494,216.91,216.79,0.12549]
[1731513792140,22.41107494,216.87,216.71,13.2717]
[1731513792939,22.41107494,216.87,216.72,0.12549]
[1731513793127,4.6112,216.86,216.71,13.2717]
[1731513793435,4.6112,216.86,216.72,0.12549]
[1731513793643,22.41107494,216.83,216.7,5.01943568]
[1731513793827,22.41107494,216.81,216.65,18.06483568]
[1731513794147,22.41107494,216.85,216.66,0.12549]
[1731513794325,4.6112,216.86,216.66,5.14492568]
[1731513794520,52.68767494,216.87,216.68,0.12549]
[1731513794938,30.2766,216.87,216.7,23.902374]
[1731513795341,22.41107494,216.91,216.7,23.902374]
[1731513795521,22.41107494,216.91,216.7,28.92180968]
[1731513796640,22.41107494,216.93,216.73,0.12549]
[1731513796942,43.4796,216.94,216.71,5.01943568]
[1731513796943,30.2766,216.94,216.75,23.902374]
[1731513799024,27.02077494,216.93,216.75,28.92180968]
[1731513799227,22.41107494,216.93,216.75,23.902374]
[1731513799739,30.2766,216.94,216.75,28.92180968]
[1731513799945,27.02017494,216.96,216.75,28.92180968]
[1731513800150,27.02017494,216.96,216.77,23.902374]
[1731513800336,22.41107494,216.96,216.77,23.902374]
[1731513800645,22.41107494,216.96,216.73,5.94814818]
[1731513800646,22.41107494,217.02,216.8,12.6232]
[1731513800826,22.41107494,217.02,216.81,29.27569857]
[1731513801023,22.41107494,217.02,216.81,35.22384675]
[1731513801326,22.41107494,217.04,216.83,23.902374]
[1731513801531,22.41107494,217.02,216.85,23.776884]
[1731513801729,22.41107494,216.99,216.85,23.776884]
[1731513802129,22.41107494,216.99,216.86,0.12549]
[1731513802346,13.1211,217.06,216.86,5.49881457]
[1731513802529,22.41107494,217.05,216.88,0.12549]
[1731513803151,22.41107494,217.03,216.88,0.12549]
[1731513803451,22.41107494,217.05,216.9,0.12549]
[1731513803841,22.41107494,217.05,216.92,23.902374]
[1731513804447,22.41107494,217.03,216.91,12.566]
[1731513804943,22.41107494,217.03,216.92,0.12549]
[1731513805144,22.41107494,217.01,216.92,0.12549]
[1731513805353,22.41107494,216.99,216.83,9.88353028]
[1731513805647,22.41107494,216.97,216.84,12.821]
[1731513806026,0.2,217.06,216.84,12.821]
[1731513806027,22.41107494,216.99,216.85,0.12549]
[1731513806740,22.41107494,216.99,216.85,23.902374]
[1731513806944,22.41107494,217.01,216.85,23.902374]
[1731513807149,22.41107494,217.03,216.87,23.902374]
[1731513807628,22.41107494,217.05,216.87,23.902374]
[1731513807831,22.41107494,217.07,216.89,0.12549]
[1731513808028,22.41107494,217.05,216.89,0.12549]
[1731513809249,55.15177494,217.08,216.91,23.902374]
[1731513809748,55.15177494,217.08,216.91,0.12549]
[1731513809959,22.41107494,217.14,216.95,0.12549]
[1731513810259,22.41107494,217.12,216.95,29.26472079]
[1731513810428,22.41107494,217.1,216.95,23.902374]
[1731513812045,34.88239751,217.15,216.95,29.26472079]
[1731513812247,30.473,217.15,216.97,23.902374]
[1731513812456,0.4495152,217.18,216.99,23.902374]
[1731513812654,4.99153297,217.18,217.01,23.902374]
[1731513813357,4.99153297,217.18,217.03,0.12549]
[1731513813557,4.99153297,217.18,217.03,23.902374]
[1731513814540,4.99153297,217.18,217.03,0.12549]
[1731513814741,4.99153297,217.18,217.01,23.902374]
[1731513814943,0.4495152,217.18,217.03,23.902374]
[1731513815547,0.4495152,217.18,217.03,29.25563401]
[1731513817744,0.4495152,217.18,217.03,5.35326001]
[1731513818647,0.4495152,217.18,217.04,0.12549]
[1731513818648,22.86059014,217.18,217.04,0.12549]
[1731513818954,22.86059014,217.18,216.94,19.54885929]
[1731513818955,20.0,217.17,216.94,19.54885929]
[1731513819266,22.41107494,217.16,216.94,19.54885929]
[1731513819446,20.0,217.15,216.94,24.81790819]
[1731513819639,20.0,217.15,216.95,5.3945389]
[1731513819840,20.0,217.15,216.95,5.2690489]
[1731513819841,20.1,217.13,216.95,5.2690489]
[1731513820067,22.41107494,217.08,216.94,13.1096]
[1731513820267,22.41107494,217.01,216.79,4.41164566]
[1731513820439,20.0,216.98,216.78,12.45]
[1731513820966,22.41107494,217.05,216.78,12.45]
[1731513821169,20.0,217.04,216.81,12.6927]
[1731513821463,20.0,217.04,216.82,4.77049001]
[1731513821765,20.1,216.98,216.81,12.6927]
[1731513821945,20.0,216.96,216.81,12.6927]
[1731513822145,22.41107494,216.93,216.74,44.7002]
[1731513822343,20.0,216.92,216.74,44.7002]
[1731513822660,22.41107494,216.87,216.74,13.0874]
[1731513822883,20.0,216.86,216.68,31.6128]
[1731513823038,20.0,216.86,216.69,4.96549001]
[1731513823458,24.6101,216.92,216.69,4.96549001]
[1731513823663,22.41107494,216.85,216.67,13.0874]
[1731513823871,20.0,216.82,216.67,13.0874]
[1731513824055,20.0,216.82,216.68,0.12549]
[1731513824258,20.0,216.82,216.67,13.0874]
[1731513824446,20.0,216.84,216.67,13.0874]
[1731513824945,24.7104,216.9,216.67,17.61170027]
[1731513825140,20.0,216.92,216.68,5.02534583]
[1731513825356,24.7101,216.92,216.68,5.02534583]
[1731513825566,0.1,216.91,216.69,23.776884]
[1731513825744,0.1,216.91,216.68,23.902374]
[1731513825955,20.0,216.9,216.68,23.902374]
[1731513826176,20.1,216.9,216.68,23.902374]
[1731513826359,22.41107494,216.89,216.68,23.902374]
[1731513826673,20.0,216.88,216.68,23.902374]
[1731513827481,27.02167494,216.89,216.69,4.89985583]
[1731513827482,22.61107494,216.89,216.69,4.89985583]
[1731513827667,20.0,216.86,216.68,23.776884]
[1731513828185,20.0,216.83,216.67,13.0874]
[1731513828362,0.1,216.88,216.67,13.0874]
[1731513828363,0.1,216.91,216.68,0.12549]
[1731513828681,4.6104,216.9,216.68,0.12549]
[1731513828868,22.41107494,216.89,216.68,0.12549]
[1731513829070,22.41107494,216.85,216.68,0.12549]
[1731513829383,22.41107494,216.78,216.6,44.5846]
[1731513829682,0.2,216.81,216.54,12.1795]
[1731513829683,20.0,216.68,216.54,12.1795]
[1731513830182,35.26927494,216.79,216.54,17.07935583]
[1731513830481,4.6131,216.77,216.55,4.89985583]
[1731513830683,20.0,216.78,216.55,4.89985583]
[1731513830860,20.0,216.78,216.54,12.1795]
[1731513830861,24.6131,216.78,216.54,12.1795]
[1731513831065,20.0,216.76,216.54,12.1795]
[1731513831282,20.0,216.74,216.54,12.1795]
[1731513831481,24.6131,216.78,216.54,12.1795]
[1731513831482,20.0,216.68,216.55,4.89985583]
[1731513831780,20.0,216.62,216.47,12.0742]
[1731513831983,20.0,216.6,216.47,12.0742]
[1731513832171,20.0,216.58,216.42,0.4495152]
[1731513832882,4.51703914,216.62,216.42,0.4495152]
[1731513832883,4.51703914,216.62,216.43,0.12549]
[1731513833067,20.0,216.63,216.44,4.62649472]
[1731513833479,22.41107494,216.67,216.44,4.62649472]
[1731513833480,20.0,216.7,216.45,23.902374]
[1731513833683,31.0453,216.72,216.47,23.902374]
[1731513833987,35.61428134,216.72,216.49,23.902374]
[1731513834172,31.0453,216.72,216.51,23.902374]
[1731513834484,22.41107494,216.71,216.51,28.52886872]
[1731513834684,22.41107494,216.69,216.51,23.902374]
[1731513834868,22.41107494,216.67,216.51,23.902374]
[1731513835063,22.41107494,216.69,216.51,23.902374]
[1731513835275,0.80034443,216.66,216.51,23.902374]
[1731513835477,22.41107494,216.65,216.5,13.0701]
[1731513835661,20.0,216.64,216.5,13.0701]
[1731513835865,20.0,216.62,216.5,13.0701]
[1731513836264,20.0,216.62,216.42,0.4495152]
[1731513836482,20.0,216.62,216.43,12.0931]
[1731513836788,29.00189618,216.62,216.43,12.0931]
[1731513837182,20.0,216.64,216.43,16.71959472]
[1731513837495,20.0,216.64,216.44,23.776884]
[1731513838176,24.616,216.64,216.45,0.12549]
[1731513839285,29.02032622,216.64,216.45,0.12549]
[1731513839679,20.0,216.62,216.45,0.12549]
[1731513839889,4.40432622,216.64,216.45,0.12549]
[1731513840092,22.41107494,216.65,216.45,4.75198472]
[1731513840385,22.41107494,216.58,216.43,12.0931]
[1731513840592,22.41107494,216.6,216.43,12.0931]
[1731513840967,22.41107494,216.62,216.44,0.12549]
[1731513841295,20.0,216.63,216.44,0.12549]
[1731513841672,4.6163,216.62,216.44,0.12549]
[1731513841872,5.31563912,216.66,216.44,23.902374]
[1731513842091,0.80034443,216.66,216.46,23.902374]
[1731513842392,0.80034443,216.66,216.48,23.902374]
[1731513842587,0.80034443,216.66,216.5,23.902374]
[1731513843468,5.51594443,216.66,216.5,23.776884]
[1731513843668,4.6161,216.63,216.5,23.776884]
[1731513843893,0.80034443,216.66,216.51,0.12549]
[1731513845280,53.45637494,216.72,216.53,0.12549]
[1731513845673,0.80122058,216.69,216.53,0.12549]
[1731513846701,40.06870302,216.72,216.55,23.902374]
[1731513846873,40.86987379,216.72,216.55,23.902374]
[1731513847079,36.25557379,216.72,216.55,23.902374]
[1731513847270,40.86987379,216.72,216.55,23.902374]
[1731513847474,9.82457379,216.72,216.55,23.902374]
[1731513847773,20.0,216.71,216.55,23.902374]
[1731513848271,24.6145,216.71,216.55,23.902374]
[1731513849997,24.6145,216.71,216.54,13.0099]
[1731513849998,22.41107494,216.66,216.54,13.0099]
[1731513850196,20.0,216.65,216.54,13.0099]
[1731513850497,20.0,216.65,216.55,0.12549]
[1731513850689,40.87078094,216.77,216.55,0.12549]
[1731513850988,4.6131,216.77,216.57,0.12549]
[1731513851195,4.6131,216.77,216.59,0.12549]
[1731513851792,27.02417494,216.77,216.58,0.12549]
[1731513851997,27.12417494,216.77,216.58,0.12549]
[1731513852195,31.4786,216.78,216.58,0.12549]
[1731513852386,36.0916,216.78,216.58,0.12549]
[1731513852700,9.07882779,216.8,216.6,0.12549]
[1731513852883,9.07872779,216.8,216.6,23.902374]
[1731513853398,0.1,216.85,216.62,23.902374]
[1731513853399,4.6122,216.82,216.62,23.902374]
[1731513853894,22.41107494,216.77,216.61,30.0469]
[1731513854195,22.41107494,216.75,216.62,0.12549]
[1731513854392,22.41107494,216.73,216.59,12.8305]
[1731513854596,20.0,216.72,216.6,0.12549]
[1731513854776,20.0,216.72,216.59,12.8305]
[1731513854980,20.0,216.72,216.38,0.1]
[1731513854981,22.41107494,216.67,216.53,12.5997]
[1731513855196,22.41107494,216.67,216.4,4.45001534]
[1731513855197,20.0,216.58,216.47,12.5997]
[1731513855403,20.0,216.56,216.47,12.5997]
[1731513855578,22.41107494,216.57,216.4,42.6466]
[1731513855579,22.41107494,216.53,216.4,42.6466]
[1731513855780,22.41107494,216.49,216.4,12.5997]
[1731513855999,22.41107494,216.49,216.33,30.0469]
[1731513856000,20.0,216.48,216.34,12.5997]
[1731513856616,4.6182,216.53,216.34,12.5997]
[1731513856786,20.0,216.5,216.34,12.5997]
[1731513857117,22.41107494,216.47,216.26,16.5192248]
[1731513857304,0.1,216.52,216.26,16.5192248]
[1731513857305,20.0,216.43,216.26,12.023]
[1731513857986,9.10517979,216.53,216.43,0.12549]
[1731513858188,20.0,216.52,216.43,0.12549]
[1731513858599,20.0,216.54,216.43,0.12549]
[1731513859099,20.0,216.48,216.26,12.023]
[1731513859889,4.6184,216.53,216.26,12.023]
[1731513860088,20.0,216.5,216.26,12.023]
[1731513860715,20.0,216.52,216.26,12.023]
[1731513861084,27.02977494,216.51,216.26,12.023]
[1731513861287,20.0,216.5,216.26,12.023]
[1731513861691,4.6183,216.53,216.43,0.12549]
[1731513861899,41.46425841,216.56,216.43,0.12549]
[1731513862221,22.41107494,216.53,216.26,12.023]
[1731513862415,22.41107494,216.51,216.26,12.023]
[1731513862624,41.46425841,216.56,216.26,12.023]
[1731513862625,22.41107494,216.49,216.26,12.023]
[1731513863101,20.0,216.48,216.26,12.023]
[1731513863496,24.6195,216.48,216.26,12.023]
[1731513863721,22.41107494,216.45,216.26,12.023]
[1731513863914,42.41107494,216.43,216.26,12.023]
[1731513864312,20.0,216.43,216.26,12.023]
[1731513864903,20.0,216.43,216.42,0.5750052]
[1731513865203,4.60553172,216.52,216.42,0.4495152]
[1731513865422,37.0416,216.56,216.43,0.12549]
[1731513865725,36.56964395,216.58,216.43,23.902374]
[1731513866028,36.56964395,216.56,216.43,23.902374]
[1731513866232,36.56964395,216.54,216.42,13.2443152]
[1731513866424,36.56964395,216.52,216.42,13.2443152]
[1731513866608,36.56964395,216.52,216.42,0.4495152]
[1731513867110,20.0,216.49,216.42,0.4495152]
[1731513867445,4.6193,216.48,216.42,0.4495152]
[1731513867903,20.0,216.47,216.42,0.4495152]
[1731513868605,20.0,216.48,216.42,0.4495152]
[1731513869115,24.6188,216.51,216.42,0.4495152]
[1731513869824,36.56964395,216.54,216.42,0.4495152]
[1731513870003,4.6178,216.55,216.42,0.4495152]
[1731513870403,36.56964395,216.52,216.42,0.4495152]
[1731513870620,36.56964395,216.5,216.42,0.4495152]
[1731513870826,36.56964395,216.46,216.42,0.4495152]
[1731513871133,36.56964395,216.44,216.42,0.4495152]
[1731513871308,20.0,216.43,216.42,0.4495152]
[1731513871706,44.002374,216.43,216.42,0.4495152]
[1731513872018,0.1,216.29,216.05,18.491183]
[1731513872222,80.34652795,216.21,216.05,18.491183]
[1731513872535,84.97162795,216.21,216.05,18.491183]
[1731513872719,114.97162795,216.21,215.98,0.4495152]
[1731513873531,118.37484973,216.21,215.98,0.4495152]
[1731513873710,123.02844184,216.21,215.98,0.4495152]
[1731513874028,95.74833606,216.21,215.98,0.4495152]
[1731513874216,50.0,216.21,215.98,0.4495152]
[1731513874530,0.8,216.23,215.98,0.4495152]
[1731513874717,0.8,216.23,216.0,6.99364644]
[1731513875411,0.8,216.23,216.0,2.4]
[1731513875412,36.56964395,216.21,216.0,2.4]
[1731513875723,80.34652795,216.21,216.0,2.4]
[1731513875915,56.56964395,216.21,216.0,2.4]
[1731513876225,61.19474395,216.21,216.0,2.4]
[1731513877021,84.97162795,216.21,216.0,2.4]
[1731513877218,114.97162795,216.21,216.0,2.4]
[1731513877418,91.19474395,216.21,216.0,2.4]
[1731513877920,50.0,216.21,216.0,2.4]
[1731513878122,30.0,216.21,216.0,2.4]
[1731513878311,0.8,216.23,216.0,2.4]
[1731513878623,36.56964395,216.21,216.0,2.4]
[1731513878820,36.56964395,216.23,216.0,2.4]
[1731513879324,20.0,216.22,216.0,2.4]
[1731513879705,24.6246,216.24,216.0,2.4]
[1731513880705,20.0,216.22,216.0,2.4]
[1731513881120,20.0,216.22,216.07,12.2417]
[1731513881431,36.56964395,216.26,216.07,12.2417]
[1731513882016,53.45320821,216.32,216.07,12.2417]
[1731513882017,36.56964395,216.3,216.07,12.2417]
[1731513882704,41.19294395,216.3,216.07,12.2417]
[1731513882911,36.56964395,216.3,216.07,12.2417]
[1731513883219,41.02392485,216.32,216.21,0.12549]
[1731513883418,4.4542809,216.32,216.21,0.12549]
[1731513883726,41.19164395,216.36,216.21,0.12549]
[1731513884024,41.19164395,216.36,216.21,23.902374]
[1731513884025,36.56964395,216.36,216.21,23.902374]
[1731513884212,36.56964395,216.38,216.21,23.902374]
[1731513884414,4.47082703,216.38,216.21,23.902374]
[1731513884612,36.56964395,216.4,216.21,23.902374]
[1731513884807,36.56964395,216.38,216.21,23.902374]
[1731513885014,36.56964395,216.32,216.21,0.12549]
[1731513885235,36.56964395,216.28,216.07,12.2417]
[1731513885613,36.56964395,216.26,216.07,12.2417]
[1731513885929,20.0,216.25,216.07,12.2417]
[1731513886518,20.0,216.27,216.07,12.2417]
[1731513886719,36.56964395,216.28,216.07,12.2417]
[1731513886720,4.41040714,216.28,216.07,12.2417]
[1731513886923,20.0,216.29,216.07,12.2417]
[1731513887419,24.6235,216.29,216.07,12.2417]
[1731513887621,36.56964395,216.28,216.07,12.2417]
[1731513887830,20.0,216.29,216.07,12.2417]
[1731513888032,20.0,216.25,216.07,12.2417]
[1731513888639,4.6241,216.26,216.07,12.2417]
[1731513888944,43.776884,216.21,216.07,12.2417]
[1731513889119,43.776884,216.21,216.2,0.3106632]
[1731513889437,20.0,216.21,216.2,0.3106632]
[1731513889642,44.70478152,216.21,216.2,0.3106632]
[1731513889849,44.80478152,216.21,216.2,0.3106632]
[1731513890020,49.42988152,216.21,216.2,0.3106632]
[1731513890645,49.20439152,216.21,216.2,0.3106632]
[1731513891434,53.80852628,216.21,216.2,0.3106632]
[1731513892348,53.68303628,216.21,216.2,0.3106632]
[1731513893135,53.80852628,216.21,216.2,0.3106632]
[1731513893641,53.80852628,216.21,216.0,2.4]
[1731513893642,0.1,216.17,216.0,2.4]
[1731513893939,20.0,216.08,216.0,2.4]
[1731513895337,24.628,216.08,216.0,2.4]
[1731513895934,29.18801426,216.08,216.0,2.4]
[1731513897122,4.6283,216.06,216.0,2.4]
[1731513897327,24.6283,216.06,216.0,2.4]
[1731513898142,80.34652795,216.01,216.0,2.4]
[1731513898344,20.0,216.01,216.0,2.4]
[1731513898848,31.09380221,216.01,215.9,12.85999]
[1731513899144,20.0,215.96,215.9,12.85999]
[1731513899445,20.0,215.94,215.91,0.12549]
[1731513899648,20.0,215.92,215.9,12.85999]
[1731513899960,20.0,215.91,215.9,12.85999]
[1731513900744,20.0,215.96,215.78,31.3536]
[1731513901047,36.56964395,216.04,215.82,4.1537794]
[1731513901232,4.6298,215.99,215.78,31.3536]
[1731513901432,36.56964395,215.96,215.78,31.3536]
[1731513901844,36.56964395,215.92,215.78,31.3536]
[1731513902231,36.56964395,215.88,215.77,13.0241152]
[1731513902430,20.0,215.87,215.77,13.0241152]
[1731513902936,20.0,215.94,215.78,0.12549]
[1731513903139,3.37893469,215.93,215.78,0.12549]
[1731513903440,23.37893469,215.92,215.78,0.12549]
[1731513903635,20.0,215.9,215.78,0.12549]
[1731513903847,20.0,215.9,215.78,23.902374]
[1731513904029,20.0,215.88,215.78,23.902374]
[1731513904235,20.0,215.86,215.78,0.12549]
[1731513904442,20.0,215.84,215.78,0.12549]
[1731513904762,20.0,215.82,215.77,0.4495152]
[1731513905458,20.0,215.83,215.77,0.4495152]
[1731513906238,20.0,215.81,215.77,0.4495152]
[1731513906441,20.0,215.83,215.77,0.4495152]
[1731513906947,20.0,215.86,215.77,0.4495152]
[1731513907131,3.36978345,215.85,215.77,0.4495152]
[1731513907459,3.36668424,215.84,215.77,0.4495152]
[1731513907759,20.0,215.81,215.77,0.4495152]
[1731513908260,60.99194491,215.86,215.77,0.4495152]
[1731513908437,56.56964395,215.86,215.77,0.4495152]
[1731513908636,20.0,215.89,215.77,0.4495152]
[1731513909035,25.60876736,215.87,215.77,0.4495152]
[1731513909257,20.0,215.85,215.77,0.4495152]
[1731513909551,20.0,215.83,215.77,0.4495152]
[1731513909761,3.36526041,215.82,215.77,0.4495152]
[1731513910052,59.93490436,215.81,215.77,0.4495152]
[1731513910259,20.0,215.79,215.77,0.4495152]
[1731513910434,3.36526041,215.78,215.77,0.4495152]
[1731513910638,8.74360396,215.78,215.77,0.4495152]
[1731513910835,28.74360396,215.78,215.77,0.4495152]
[1731513911048,20.0,215.77,215.7,12.0492]
[1731513911356,20.0,215.73,215.7,12.0492]
[1731513911659,20.0,215.71,215.7,12.0492]
[1731513911838,27.69221651,215.71,215.6,13.0895]
[1731513912039,20.0,215.71,215.6,13.0895]
[1731513912652,42.17127158,215.77,215.6,13.0895]
[1731513912653,20.0,215.76,215.6,13.0895]
[1731513912839,20.0,215.74,215.6,13.0895]
[1731513913537,24.6349,215.76,215.55,0.4495152]
[1731513913760,20.0,215.72,215.55,0.4495152]
[1731513914563,20.0,215.76,215.56,0.1]
[1731513914940,24.6348,215.76,215.55,0.4495152]
[1731513915260,41.20444395,215.76,215.56,0.12549]
[1731513915565,24.6346,215.77,215.56,0.22549]
[1731513915769,20.0,215.77,215.56,0.12549]
[1731513916060,20.0,215.77,215.56,0.22549]
[1731513916260,20.0,215.77,215.58,0.12549]
[1731513916671,20.0,215.75,215.58,0.12549]
[1731513917053,20.0,215.73,215.57,0.12549]
[1731513917247,3.37021676,215.72,215.56,23.776884]
[1731513917564,20.0,215.71,215.55,0.4495152]
[1731513917769,3.36977231,215.7,215.56,0.12549]
[1731513917973,36.56964395,215.66,215.55,0.4495152]
[1731513918272,20.0,215.63,215.55,0.4495152]
[1731513918778,20.0,215.69,215.56,0.12549]